[Event "Azerbaijan Men Championship 2024"]
[Site "Baku"]
[Date "2024.04.14"]
[Round "4.8"]
[White "Aslanov, Umid"]
[Black "Hamidov, Allahverdi"]
[Result "1/2-1/2"]
[ECO "C09"]
[WhiteElo "2239"]
[BlackElo "2091"]
[Annotator "TA"]
[PlyCount "85"]
[EventDate "2024.04.11"]
[EventType "swiss"]
[EventCountry "AZE"]
[SourceTitle "playchess.com"]
[Source "ChessBase"]
[SourceQuality "1"]
[TimeControl "40/5400+30:1800+30"]

{[%evp 12,85,19,25,34,26,29,21,22,18,22,20,20,18,18,28,22,21,24,24,10,13,13,13,1,5,6,7,27,27,23,19,33,21,41,13,44,16,18,12,27,4,43,17,16,19,17,8,31,31,36,34,35,54,26,27,24,24,24,33,114,114,115,8,8,8,26,8,8,0,0,0,0,0,0,0]} 1. e4 {[%emt 0:00:03]} e6 {[%emt 0:03:37]} 2. d4 {[%emt 0:00:05]} d5 {[%emt 0:00:02]} 3. Nd2 {[%emt 0:00:08]} c5 {[%emt 0:01:31]} 4. exd5 {[%emt 0:00:28]} exd5 {[%emt 0:00:06]} 5. Ngf3 {[%emt 0:00:13]} Nc6 {[%emt 0:00:18]} 6. Bb5 {[%emt 0:00:15]} Qe7+ {[%emt 0:00:06]} 7. Be2 {[%emt 0:00:04]} Qc7 {[%emt 0:00:07]} 8. O-O {[%emt 0:00:24]} Nf6 {[%emt 0:00:09]} 9. Re1 {[%emt 0:02:53]} cxd4 {[%emt 0:00:13]} 10. Nb3 {[%emt 0:00:57]} Bb4 {[%emt 0:00:17]} 11. Bd2 {[%emt 0:01:17][%cal Od2b4] And now Bxb4! would win.} Bxd2 {[%emt 0:00:06]} 12. Qxd2 {[%emt 0:00:22]} O-O {[%emt 0:00:07]} 13. Nfxd4 {[%emt 0:04:39]} Bd7 {[%emt 0:00:19]} 14. Nc5 {[%emt 0:06:39]} Qb6 {[%emt 0:00:18][%csl LRb2,LRc5]} 15. Nxd7 {[%emt 0:02:57]} Nxd7 {[%emt 0:00:10]} 16. Nxc6 {[%emt 0:05:51]} bxc6 {[%emt 0:00:14]} 17. c4 {[%emt 0:01:17]} Nf6 {[%emt 0:01:15]} 18. cxd5 {[%emt 0:00:26]} cxd5 {[%emt 0:00:41]} 19. Rad1 {[%emt 0:01:01]} Rac8 {[%emt 0:02:01]} 20. Bf3 {[%emt 0:06:56]} Rfe8 {[%emt 0:02:37]} 21. Rxe8+ {[%emt 0:03:29]} Rxe8 {[%emt 0:00:06]} 22. g3 {[%emt 0:07:20][%cal Ob2b4]} g6 {[%emt 0:01:13]} 23. Kg2 {[%emt 0:08:42]} Kg7 {[%emt 0:06:39]} 24. Qd4 {[%emt 0:00:52]} (24. Bxd5 $2 {perishes.} Rd8 (24... Nxd5 25. Qxd5 Qxb2 26. Qd7 $11) 25. Qc3 Rxd5 26. Rxd5 Qb7 $19) 24... Qxd4 {[%emt 0:11:29]} 25. Rxd4 $11 {[%emt 0:00:27][%cal Od4a4][%mdl 4096] Endgame. KRB-KRN} Rc8 {[%emt 0:10:31]} 26. a4 {[%emt 0:05:45]} (26. Bxd5 $2 {loses.} Rd8 27. Ra4 Rxd5 $19) 26... Kf8 {[%emt 0:02:18]} 27. g4 {[%emt 0:03:39][%cal Og4g5]} (27. Bxd5 $2 Rd8 28. Kf3 Nxd5 $19 (28... Rxd5 $2 29. Rxd5 Nxd5 30. Ke4 $19)) 27... g5 {[%emt 0:01:58]} 28. Rb4 {[%emt 0:03:45]} (28. Bxd5 $2 {too greedy.} Rd8 29. Rd3 Rxd5 $19 (29... Nxd5 $2 30. Kf3 $19)) 28... Rc2 {[%emt 0:15:20]} 29. a5 {[%emt 0:03:30]} Ne4 {[%emt 0:14:22]} 30. Bxe4 {[%emt 0:01:12]} dxe4 $14 {[%emt 0:00:10] KR-KR} 31. Kf1 {[%emt 0:02:28]} a6 {[%emt 0:01:12]} 32. Rb6 {[%emt 0:01:19][%cal Ob2b4]} Kg7 $1 {[%emt 0:00:39]} 33. b4 {[%emt 0:03:29]} Rb2 {[%emt 0:00:46]} 34. Ke1 {[%emt 0:00:22]} h6 {[%emt 0:10:20]} 35. h3 {[%emt 0:06:25]} h5 {[%emt 0:03:59]} 36. gxh5 $16 {[%emt 0:03:53]} Kh7 {[%emt 0:01:41]} 37. Kf1 {[%emt 0:00:19]} (37. Rxa6 $16 {Threatens to win with Rb6.} Rxb4 38. Rf6) 37... f5 $11 {[%emt 0:01:43]} 38. Rxa6 {[%emt 0:08:59] [#] Hoping for Rb6.} Rxb4 {[%emt 0:01:28]} 39. Rg6 {[%emt 0:01:10]} Ra4 {[%emt 0:02:11] The position is equal.} 40. Rxg5 {[%emt 0:00:00]} Rxa5 {[%emt 0:00:00]} 41. Kg2 {[%emt 0:00:18]} Kh6 {[%emt 0:00:58]} 42. h4 {[%emt 0:00:09]} Ra2 {[%emt 0:00:16]} 43. Kg3 {[%emt 0:04:32] Weighted Error Value: White=0.10 (very precise) /Black=0.09 (flawless) .  Mistake:       	White=1     	Black=1      Inaccurate:     	White=3     	Black=2      OK:         	White=10    	Black=14     Best:        	White=1     	Black=3      Strong:       	---       	Black=1} 1/2-1/2

[Event "Azerbaijan Men Championship 2024"]
[Site "Baku"]
[Date "2024.04.14"]
[Round "4.9"]
[White "Sevdimaliyev, Urfan"]
[Black "Talibov, Shiroghlan"]
[Result "1/2-1/2"]
[ECO "D02"]
[WhiteElo "2320"]
[BlackElo "2373"]
[Annotator "TA"]
[PlyCount "102"]
[EventDate "2024.04.11"]
[EventType "swiss"]
[EventCountry "AZE"]
[SourceTitle "playchess.com"]
[Source "ChessBase"]
[SourceQuality "1"]
[TimeControl "40/5400+30:1800+30"]

{[%evp 9,102,8,15,11,15,7,11,5,4,19,7,0,4,0,0,0,0,0,0,0,0,0,0,0,0,0,0,0,0,0,0,0,0,0,0,0,17,17,22,15,22,21,35,11,21,0,54,47,45,57,116,37,33,27,41,17,37,54,40,35,61,50,57,27,20,0,37,0,0,0,0,0,0,0,0,0,0,0,0,0,8,8,8,8,8,8,8,8,8,8,12,8,8,8,8]} 1. d4 {[%emt 0:00:06]} d5 {[%emt 0:00:12]} 2. Bf4 {[%emt 0:00:26]} Nf6 {[%emt 0:00:22]} 3. e3 {[%emt 0:00:22]} c5 {[%emt 0:00:05]} 4. Nf3 {[%emt 0:01:44]} Nc6 {[%emt 0:00:20]} 5. Nbd2 {[%emt 0:01:54]} cxd4 {[%emt 0:00:36]} 6. exd4 {[%emt 0:00:07]} Bf5 {[%emt 0:00:03]} 7. c3 {[%emt 0:02:09]} e6 {[%emt 0:00:05]} 8. Be2 {[%emt 0:05:15]} Bd6 {[%emt 0:00:14]} 9. Bxd6 {[%emt 0:00:57]} Qxd6 {[%emt 0:00:05]} 10. O-O {[%emt 0:00:35]} h6 {[%emt 0:00:04]} 11. Re1 {[%emt 0:02:40]} O-O {[%emt 0:00:05]} 12. Bf1 {[%emt 0:02:07]} Qc7 {[%emt 0:00:06]} 13. h3 {[%emt 0:08:48]} Rab8 {[%emt 0:06:24]} 14. a4 {[%emt 0:01:58]} Rfc8 {[%emt 0:08:10]} 15. Nb3 {[%emt 0:07:14]} Nd7 {[%emt 0:04:47]} 16. Bd3 {[%emt 0:07:00]} Bxd3 {[%emt 0:00:58]} 17. Qxd3 {[%emt 0:00:01]} a6 {[%emt 0:00:11]} 18. Nbd2 {[%emt 0:11:17]} Ne7 {[%emt 0:14:18]} 19. Rec1 {[%emt 0:05:57]} Qf4 {[%emt 0:03:01]} 20. g3 {[%emt 0:04:28]} Qf5 {[%emt 0:00:03]} 21. Qxf5 {[%emt 0:00:54]} Nxf5 {[%emt 0:00:01]} 22. a5 {[%emt 0:03:06]} Nd6 {[%emt 0:00:38]} 23. Ne1 {[%emt 0:02:46]} f6 {[%emt 0:10:58]} 24. Nd3 {[%emt 0:03:30]} Kf7 {[%emt 0:00:07]} 25. Nb3 {[%emt 0:03:32]} Rc7 {[%emt 0:10:02]} 26. f3 {[%emt 0:03:25]} Nc4 {[%emt 0:04:51]} 27. Kf2 {[%emt 0:05:06]} Nd6 {[%emt 0:07:38]} ({Black should play} 27... b6 $11) 28. Re1 {[%emt 0:03:07]} Nc4 {[%emt 0:04:31]} 29. Re2 {[%emt 0:00:50]} Rc6 {[%emt 0:01:33] [#]} (29... Re8 $14) 30. Rae1 {[%emt 0:02:37]} (30. Nbc5 $1 $16 {[%cal Rc5d7]} Nf8 31. Ra4) 30... e5 $14 {[%emt 0:03:44]} 31. Nb4 {[%emt 0:00:59]} Rd6 {[%emt 0:00:05]} 32. Rd1 {[%emt 0:01:01]} Rd8 {[%emt 0:01:18]} 33. dxe5 {[%emt 0:05:34]} Ndxe5 {[%emt 0:00:14]} 34. f4 {[%emt 0:02:01]} Ng6 {[%emt 0:01:55]} 35. Rde1 {[%emt 0:02:04]} Rc8 {[%emt 0:00:20]} 36. h4 {[%emt 0:01:11]} (36. Nd3 {with more complications.} Rd7 37. Nbc5 Rdc7 38. Ne6) 36... h5 {[%emt 0:00:14]} 37. Kg2 {[%emt 0:01:07]} Rc7 {[%emt 0:00:39]} 38. Ra1 {[%emt 0:00:49]} Re7 {[%emt 0:02:33] The position is equal.} 39. Rxe7+ {[%emt 0:00:22]} Nxe7 {[%emt 0:00:02]} 40. Nc5 {[%emt 0:00:00] Against Rd7} b6 {[%emt 0:00:00]} 41. axb6 {[%emt 0:03:39]} Rxb6 {[%emt 0:07:24]} 42. Rxa6 {[%emt 0:07:14]} Rxa6 {[%emt 0:00:18]} 43. Ncxa6 {[%emt 0:00:15]} Nxb2 $11 {[%emt 0:04:57][%mdl 4096] Endgame. KNN-KNN} 44. Nc7 {[%emt 0:00:16]} Nc4 {[%emt 0:00:38]} 45. Ncxd5 {[%emt 0:01:01]} Nf5 {[%emt 0:00:57]} 46. Nc2 {[%emt 0:01:06]} g5 {[%emt 0:03:44]} 47. hxg5 {[%emt 0:02:01]} fxg5 {[%emt 0:00:22]} 48. fxg5 {[%emt 0:00:36] Threatens to win with Kf3.} Kg6 {[%emt 0:00:04]} 49. Nd4 {[%emt 0:08:04]} Kxg5 {[%emt 0:02:29]} 50. Nxf5 {[%emt 0:00:46]} Kxf5 {[%emt 0:00:01]} 51. Kf2 {[%emt 0:01:04] [#] Ne3+ is the strong threat.} Ke5 {[%emt 0:33:34] Weighted Error Value: White=0.07 (flawless) /Black=0.09 (flawless) .  Mistake:       	White=1     	Black=2      Inaccurate:     	White=2     	Black=2      OK:         	White=22    	Black=17     Best:        	---       	Black=1} 1/2-1/2

[Event "Azerbaijan Men Championship 2024"]
[Site "Baku"]
[Date "2024.04.14"]
[Round "4.10"]
[White "Ahmad, Khagan"]
[Black "Hasanzade, Toghrul"]
[Result "0-1"]
[ECO "E05"]
[WhiteElo "2321"]
[BlackElo "2350"]
[Annotator "TA"]
[PlyCount "66"]
[EventDate "2024.04.11"]
[EventType "swiss"]
[EventCountry "AZE"]
[SourceTitle "playchess.com"]
[Source "ChessBase"]
[SourceQuality "1"]
[TimeControl "40/5400+30:1800+30"]

{[%evp 16,66,31,19,39,27,19,13,15,14,15,4,19,0,13,-10,-15,-24,-13,-73,-74,-97,-84,-143,-135,-141,-149,-212,-200,-279,-265,-245,-211,-198,-216,-224,-208,-412,-402,-401,-415,-409,-422,-427,-427,-402,-368,-934,-910,-894,-905,-884,-866]} 1. Nf3 {[%emt 0:01:12]} Nf6 {[%emt 0:00:00]} 2. c4 {[%emt 0:00:08]} e6 {[%emt 0:00:45]} 3. g3 {[%emt 0:00:10]} d5 {[%emt 0:00:09]} 4. d4 {[%emt 0:00:05]} Be7 {[%emt 0:00:09]} 5. Bg2 {[%emt 0:00:05]} O-O {[%emt 0:00:06]} 6. O-O {[%emt 0:00:04]} dxc4 {[%emt 0:00:05]} 7. Qc2 {[%emt 0:00:06]} a6 {[%emt 0:00:05]} 8. a4 {[%emt 0:00:03]} Nc6 {[%emt 0:00:15]} 9. Qxc4 {[%emt 0:00:07]} Na5 {[%emt 0:00:05]} 10. Qc2 {[%emt 0:00:13]} b6 {[%emt 0:00:05]} 11. Bd2 {[%emt 0:03:46]} Bb7 {[%emt 0:00:16] The position is equal.} 12. Bxa5 {[%emt 0:00:05]} bxa5 {[%emt 0:00:05]} 13. Nbd2 {[%emt 0:00:07]} Rc8 {[%emt 0:00:07]} 14. Nb3 {[%emt 0:00:14]} Be4 {[%emt 0:00:03] A strong pair of Bishops.} 15. Qc1 {[%emt 0:02:02] [#]} c5 $1 {[%emt 0:00:28]} 16. dxc5 {[%emt 0:15:19]} (16. Nxc5 Bxf3) 16... Qd5 {[%emt 0:00:23][%csl LRb3,LRc5]} 17. Qe3 {[%emt 0:01:39] [#]} (17. Qc3 $11 {keeps the balance.}) 17... Rb8 $1 $17 {[%emt 0:09:47] Black continues to play with concentration.} 18. Ra3 {[%emt 0:07:04][%cal Of3e1]} Rb4 {[%emt 0:08:09]} 19. Qc3 {[%emt 0:51:56]} (19. Qc1 $142) 19... Rfb8 {[%emt 0:08:44]} 20. Nbd2 {[%emt 0:01:59][%cal Oc5c6]} Rxb2 {[%emt 0:11:49] Strongly threatening ...Rc2. Black is much more active.} ({Don't play} 20... Qxc5 $6 21. Qxc5 Bxc5 22. b3 $11) (20... Bxc5 21. Rc1 Be7 22. b3 $17) 21. Nxe4 {[%emt 0:08:27]} (21. Rc1 $17 {is a better defense.}) 21... Nxe4 $19 {[%emt 0:00:30]} 22. Qe5 {[%emt 0:00:30]} Bxc5 {[%emt 0:05:36]} ({Less strong is} 22... Nxc5 23. Qxd5 exd5 24. Nd4 $17) 23. Qxd5 {[%emt 0:00:59]} exd5 {[%emt 0:00:15]} 24. Rd3 {[%emt 0:00:04]} Rxe2 {[%emt 0:06:00]} 25. Rxd5 {[%emt 0:05:12]} Rxf2 {[%emt 0:01:23]} 26. Rxf2 {[%emt 0:00:54]} (26. Kh1 {was necessary.}) 26... Bxf2+ {[%emt 0:00:04]} 27. Kh1 {[%emt 0:00:03]} Rb1+ {[%emt 0:01:01]} 28. Bf1 {[%emt 0:00:04]} Bb6 {[%emt 0:00:11] Prevents Rd8+} (28... Rxf1+ 29. Kg2 Bb6 30. Kxf1 $16) 29. Kg2 {[%emt 0:00:20]} Rb2+ {[%emt 0:00:19]} 30. Kh3 {[%emt 0:00:25]} Nf2+ {[%emt 0:00:35]} 31. Kh4 $2 {[%emt 0:01:06]} (31. Kg2 Ng4+ 32. Kh1) 31... Rb4+ {[%emt 0:00:40] Black is clearly winning.} 32. Kg5 {[%emt 0:00:05]} h6+ {[%emt 0:04:13]} 33. Kf5 {[%emt 0:00:12]} Ng4 {[%emt 0:00:56] Weighted Error Value: White=0.38/Black=0.02 (flawless) .  Mistake:       	White=5     	---        Inaccurate:     	White=1     	---        OK:         	White=9     	Black=9      Best:        	White=3     	Black=6      Strong:       	---       	Black=1} 0-1

[Event "Azerbaijan Men Championship 2024"]
[Site "Baku"]
[Date "2024.04.15"]
[Round "5.1"]
[White "Iskandarov, Misratdin"]
[Black "Muradli, Mahammad"]
[Result "1/2-1/2"]
[ECO "B23"]
[WhiteElo "2538"]
[BlackElo "2555"]
[Annotator "TA"]
[PlyCount "80"]
[EventDate "2024.04.11"]
[EventType "swiss"]
[EventCountry "AZE"]
[SourceTitle "playchess.com"]
[Source "ChessBase"]
[SourceQuality "1"]
[TimeControl "40/5400+30:1800+30"]

{[%evp 14,80,0,0,0,0,0,8,11,14,32,41,69,57,41,37,60,21,17,24,48,34,84,92,162,29,65,0,0,0,0,-7,-4,0,0,-47,-45,-49,-25,-41,51,54,56,0,0,0,0,0,0,0,0,0,0,0,39,0,0,0,0,0,0,0,0,0,0,0,0,-8,0]} 1. e4 {[%emt 0:00:03]} c5 {[%emt 0:04:44]} 2. Nc3 {[%emt 0:00:23]} d6 {[%emt 0:00:08]} 3. f4 {[%emt 0:00:12]} g6 {[%emt 0:07:06]} 4. Nf3 {[%emt 0:00:08]} Bg7 {[%emt 0:00:05]} 5. Bb5+ {[%emt 0:00:06]} Bd7 {[%emt 0:00:09]} 6. Bc4 {[%emt 0:00:08] B23: Closed Sicilian: Lines without g3.} Nc6 {[%emt 0:00:19]} 7. d3 {[%emt 0:00:06]} e6 {[%emt 0:00:24]} 8. f5 {[%emt 0:00:06]} gxf5 {[%emt 0:16:19]} 9. exf5 {[%emt 0:00:07]} d5 {[%emt 0:00:07]} 10. Bb5 {[%emt 0:00:06]} Nge7 {[%emt 0:00:37]} 11. Bxc6 {[%emt 0:00:21]} Nxc6 {[%emt 0:05:14]} 12. O-O {[%emt 0:00:21]} h6 {[%emt 0:10:40]} 13. Bf4 $146 {[%emt 0:09:25]} ({Predecessor:} 13. Qe1 Qe7 14. Nb5 O-O 15. Qg3 Kh7 16. Bg5 Bf6 17. Bf4 e5 18. Rae1 exf4 19. Rxe7 Nxe7 20. Qxf4 Bxb5 {½-½ Heller,J (1984)-Tiglon,B (2489) US op 123nd Grand Rapids 2023 (3)}) 13... Qb6 {[%emt 0:09:00]} 14. fxe6 {[%emt 0:03:35]} Bxe6 {[%emt 0:02:05]} 15. Qc1 {[%emt 0:07:26]} O-O-O {[%emt 0:03:10]} 16. Bg3 {[%emt 0:06:11]} h5 {[%emt 0:05:47]} 17. a4 $1 {[%emt 0:11:12]} Nd4 {[%emt 0:08:04]} ({Better is} 17... h4 $14 18. Bxh4 Rdg8) 18. a5 $16 {[%emt 0:05:35]} Qc6 {[%emt 0:01:16] [#]} (18... Nxf3+ $16 19. Rxf3 Qc6) 19. Qf4 {[%emt 0:08:25]} (19. Ne5 $1 $18 {[%cal Re5c6]} Qe8 20. Nxf7) 19... Rdg8 {[%emt 0:10:22] [#]} 20. a6 {[%emt 0:05:33]} (20. Rae1 $1 $14 Kd7 21. h4 (21. Ne5+ Bxe5 22. Rxe5 h4 $17)) 20... Nxf3+ $11 {[%emt 0:02:06]} 21. Rxf3 {[%emt 0:00:07]} Bd4+ {[%emt 0:00:15]} 22. Kf1 {[%emt 0:01:22]} h4 $1 {[%emt 0:00:53]} 23. axb7+ {[%emt 0:03:49]} Kxb7 {[%emt 0:00:32]} 24. Bf2 {[%emt 0:08:37]} (24. Bxh4 $2 Rg4 25. Bg3 Rxf4 $19) (24. Qd6 $11 {should be considered.} Qxd6 (24... hxg3 $2 25. Rxa7+ Kxa7 26. Qxc6 $18) 25. Bxd6) 24... Rg4 $15 {[%emt 0:00:32]} 25. Qd2 {[%emt 0:00:11]} Rhg8 {[%emt 0:01:02]} (25... h3 $5 26. gxh3 Rg6 $15) 26. Ne2 {[%emt 0:03:12]} (26. Bxd4 cxd4 27. Ne2 Rxg2 $17) 26... Bxf2 {[%emt 0:08:13]} ({Reject} 26... Bxb2 $6 27. Rb1 Ka8 28. Nf4 $11 (28. Rxb2 Rxg2 29. Bxh4 d4 $11)) ({Black should try} 26... Rxg2 $15 27. Nxd4 cxd4) 27. Rxf2 $14 {[%emt 0:00:07]} d4 {[%emt 0:00:11]} 28. Nf4 {[%emt 0:00:47]} h3 {[%emt 0:00:42]} 29. Qa5 {[%emt 0:06:42]} (29. Nxh3 $2 {too greedy.} Rxg2 30. Rxg2 Bxh3 $19) 29... a6 {[%emt 0:03:07]} 30. Nxe6 {[%emt 0:00:11]} fxe6 {[%emt 0:01:24]} 31. g3 {[%emt 0:03:22]} R4g5 $1 {[%emt 0:00:09]} 32. Qa4 {[%emt 0:04:32]} Qxa4 {[%emt 0:01:16]} 33. Rxa4 {[%emt 0:00:06]} Rf5 {[%emt 0:00:18]} 34. b4 {[%emt 0:02:08]} Rgf8 {[%emt 0:00:39]} 35. Rxf5 {[%emt 0:00:02]} Rxf5+ {[%emt 0:00:04]} 36. Ke2 {[%emt 0:00:09]} Kb6 {[%emt 0:00:50]} 37. bxc5+ {[%emt 0:01:12]} Rxc5 {[%emt 0:00:03]} 38. Kd2 {[%emt 0:01:27]} Rd5 {[%emt 0:01:01]} 39. Rb4+ {[%emt 0:01:33]} Kc7 {[%emt 0:00:25]} 40. c3 {[%emt 0:00:00]} e5 {[%emt 0:00:00]} 1/2-1/2

[Event "Azerbaijan Men Championship 2024"]
[Site "Baku"]
[Date "2024.04.15"]
[Round "5.2"]
[White "Guliyev, Namig"]
[Black "Samadov, Read"]
[Result "1/2-1/2"]
[ECO "B90"]
[WhiteElo "2509"]
[BlackElo "2502"]
[Annotator "TA"]
[PlyCount "106"]
[EventDate "2024.04.11"]
[EventType "swiss"]
[EventCountry "AZE"]
[SourceTitle "playchess.com"]
[Source "ChessBase"]
[SourceQuality "1"]
[TimeControl "40/5400+30:1800+30"]

{[%evp 20,106,15,10,17,14,21,12,31,37,36,38,29,35,43,37,52,27,61,33,81,54,70,62,76,73,95,82,120,65,54,12,11,12,12,14,13,4,22,31,18,22,22,0,0,0,8,8,8,8,8,8,62,62,62,8,63,70,80,80,80,80,80,80,80,80,80,80,80,80,80,80,80,80,80,8,8,8,8,8,8,8,8,8,8,8,8,8,8]} 1. e4 {[%emt 0:02:46]} c5 {[%emt 0:00:07]} 2. Nf3 {[%emt 0:00:16]} d6 {[%emt 0:00:07]} 3. d4 {[%emt 0:00:19]} cxd4 {[%emt 0:00:06]} 4. Nxd4 {[%emt 0:00:04]} Nf6 {[%emt 0:00:06]} 5. Nc3 {[%emt 0:00:04]} a6 {[%emt 0:00:05]} 6. Be3 {[%emt 0:00:19]} e5 {[%emt 0:00:20]} 7. Nb3 {[%emt 0:01:41]} Be7 {[%emt 0:00:53]} 8. f3 {[%emt 0:01:53]} Be6 {[%emt 0:00:32]} 9. Qd2 {[%emt 0:00:06]} h5 {[%emt 0:02:50]} 10. Nd5 {[%emt 0:06:12]} Nxd5 {[%emt 0:01:41]} 11. exd5 {[%emt 0:00:06]} Bf5 {[%emt 0:00:32]} 12. Be2 {[%emt 0:00:05]} a5 {[%emt 0:03:56]} 13. a4 {[%emt 0:01:34]} Nd7 {[%emt 0:01:18]} 14. O-O {[%emt 0:00:14]} O-O {[%emt 0:02:12]} 15. f4 {[%emt 0:01:04]} exf4 {[%emt 0:04:11]} 16. Bxf4 {[%emt 0:00:19]} (16. Bxh5 $2 fxe3 17. Qxe3 Bh7 $19 (17... Bxc2 $2 18. Rxf7 Rxf7 19. Bxf7+ Kxf7 20. Qf2+ Bf6 21. Qxc2 $19)) 16... Nf6 {[%emt 0:04:28]} 17. Nd4 {[%emt 0:05:19]} Bg6 {[%emt 0:11:41]} 18. Bf3 {[%emt 0:09:55]} Re8 {[%emt 0:13:05]} 19. Rae1 {[%emt 0:01:07]} Rc8 {[%emt 0:07:47]} (19... Qb6 $14) 20. Kh1 $16 {[%emt 0:02:40] White is much more active.} Qb6 {[%emt 0:05:09]} 21. c3 {[%emt 0:13:52]} Nd7 {[%emt 0:08:11]} 22. Nb5 {[%emt 0:05:35]} Bf8 {[%emt 0:04:25]} 23. Qd1 {[%emt 0:14:43]} Qc5 {[%emt 0:12:57]} 24. Rxe8 {[%emt 0:02:13]} ({Much less strong is} 24. Bxh5 Bxh5 25. Qxh5 Rxe1 26. Rxe1 Nf6 $14) (24. b3 $16) 24... Rxe8 $14 {[%emt 0:00:01]} 25. Bxh5 {[%emt 0:00:26]} Bxh5 {[%emt 0:02:01]} 26. Qxh5 {[%emt 0:00:15][%cal Of4d6] next Bxd6! is good for White.} Nf6 {[%emt 0:00:50][%csl LRd5,LRh5]} 27. Qf3 {[%emt 0:06:24]} Qxd5 {[%emt 0:01:17] [#]} 28. Bxd6 $1 {[%emt 0:02:12]} Bxd6 {[%emt 0:04:10]} (28... Qd2 29. Bxf8) 29. Qxd5 {[%emt 0:00:11]} Nxd5 {[%emt 0:00:00][%cal Bf6d5,Bd5c3,Bc3a4,Ba4c5,Bc5e6,Be6d4][%mdl 32]} 30. Nxd6 $11 {[%emt 0:00:10][%mdl 4096] Endgame. KRN-KRN} Re2 {[%emt 0:00:10]} 31. h4 {[%emt 0:04:49]} (31. Nxf7 $2 {too greedy.} Ne3 (31... Rxb2 32. Nd6 $15) 32. Rb1 Kxf7 $19) 31... Rxb2 {[%emt 0:02:19]} 32. Rxf7 {[%emt 0:00:18]} Nxc3 {[%emt 0:01:42]} (32... Rb6 $5 33. Rd7 $8 Nxc3 $11) 33. Rxb7 {[%emt 0:02:19]} Rxb7 {[%emt 0:01:17]} 34. Nxb7 {[%emt 0:00:05]} Nxa4 {[%emt 0:00:02]} 35. Nxa5 {[%emt 0:00:09] KN-KN} Kf7 {[%emt 0:00:19]} (35... Nc5 $11) 36. Kh2 $14 {[%emt 0:00:03]} Nc5 {[%emt 0:01:11][%cal Og7g5]} 37. Kg3 {[%emt 0:00:10]} (37. Nc4 $14) 37... Kf6 {[%emt 0:00:57]} (37... Kg6 $11) 38. Kg4 {[%emt 0:00:10]} g6 {[%emt 0:02:33]} 39. Nc4 {[%emt 0:00:14]} Ne6 {[%emt 0:00:39]} 40. Nd6 {[%emt 0:00:00]} Nd4 {[%emt 0:00:00]} 41. Ne4+ {[%emt 0:01:02]} Ke5 {[%emt 0:04:23]} 42. Nc3 {[%emt 0:01:09]} Ne6 {[%emt 0:01:13]} 43. g3 {[%emt 0:00:30]} Kf6 {[%emt 0:00:42]} 44. Ne4+ {[%emt 0:00:06]} Ke5 {[%emt 0:04:35]} 45. Ng5 {[%emt 0:00:10] Threatening mate with Nxe6.} Nd8 {[%emt 0:00:50]} 46. Nf3+ {[%emt 0:01:29]} Kf6 {[%emt 0:00:07]} 47. Kf4 {[%emt 0:00:04]} (47. Nd2 $16) 47... Ne6+ $11 {[%emt 0:00:24] The position is equal.} 48. Ke4 {[%emt 0:00:09]} g5 $1 {[%emt 0:02:15]} 49. h5 {[%emt 0:03:09] Strongly threatening g4.} Ng7 {[%emt 0:02:21]} 50. g4 {[%emt 0:01:45] Ne5 would now be deadly.} Nxh5 {[%emt 0:00:23]} 51. gxh5 {[%emt 0:00:10] Intending Nh2 and mate.} g4 {[%emt 0:00:04]} 52. Nh2 {[%emt 0:00:05]} Kg5 {[%emt 0:00:03] [#]} 53. Nxg4 $1 {[%emt 0:00:04][%cal Oh5h6] White wants to mate with h6!} Kxh5 $1 {[%emt 0:00:03] Weighted Error Value: White=0.10 (very precise) /Black=0.11 (very precise) .  Mistake:       	White=3     	Black=3      Inaccurate:     	White=2     	Black=2      OK:         	White=22    	Black=14     Best:        	---       	Black=6      Strong:       	---       	Black=2} 1/2-1/2